Departmental family,Entity,Date Paid,Expense type,Expense Area,Supplier,Transaction Number,Amount, Description , Supplier Type , Expenditure Type 
UK Statistics Authority,Office for National Statistics,01-Aug-17,Furniture Costing > 2k,Property Titchfield,The Senator Group,41643,"101,340.22", Smart Working Furniture Titchfield, Large , Programme 
UK Statistics Authority,Office for National Statistics,01-Aug-17,Office Furniture,Property Newport,The Senator Group,41643,"10,512.00", Smart Working Furniture Newport, Large , Programme 
UK Statistics Authority,Office for National Statistics,01-Aug-17,ICT Outsourcing & Maintenance/Support,Digital Services Technology and Methodology,Methods Digital Ltd,41645,"143,550.00", Information Management Services, Large , Programme 
UK Statistics Authority,Office for National Statistics,01-Aug-17,Consultancy,Digital Services Technology and Methodology,Parity Resources Limited,41654,"2,557.56", Information Management Services, Large , Programme 
UK Statistics Authority,Office for National Statistics,01-Aug-17,Contractors,Data Collection,Parity Resources Limited,41654,"5,950.68", Information Management Services, Large , Programme 
UK Statistics Authority,Office for National Statistics,01-Aug-17,Contractors,Finance,Parity Resources Limited,41654,"10,552.50", Information Management Services, Large , Programme 
UK Statistics Authority,Office for National Statistics,01-Aug-17,Contractors,Finance,Parity Resources Limited,41654,703.5, Information Management Services, Large , Programme 
UK Statistics Authority,Office for National Statistics,01-Aug-17,Contractors,Organisational Development,Parity Resources Limited,41654,"16,180.50", Information Management Services, Large , Programme 
UK Statistics Authority,Office for National Statistics,01-Aug-17,Short-Term Contract & Agency Staff,Data Collection,Parity Resources Limited,41654,"3,016.46", Information Management Services, Large , Programme 
UK Statistics Authority,Office for National Statistics,01-Aug-17,Short-Term Contract & Agency Staff,Data Collection,Parity Resources Limited,41654,"3,657.49", Information Management Services, Large , Programme 
UK Statistics Authority,Office for National Statistics,01-Aug-17,Short-Term Contract & Agency Staff,Data Collection,Parity Resources Limited,41654,27.44, Information Management Services, Large , Programme 
UK Statistics Authority,Office for National Statistics,01-Aug-17,Short-Term Contract & Agency Staff,Data Collection,Parity Resources Limited,41654,"2,140.03", Information Management Services, Large , Programme 
UK Statistics Authority,Office for National Statistics,01-Aug-17,Consultancy,Digital Services Technology and Methodology,Experienced Management Consultants Limited (XMCS),41659,"105,840.00", Information Management Services, SME , Programme 
UK Statistics Authority,Office for National Statistics,01-Aug-17,Surveys,Data Collection,NatCen Social Research,41669,"232,027.63", Post Office Vouchers , Large , Programme 
UK Statistics Authority,Office for National Statistics,01-Aug-17,Facilities Management,Corporate Support,Vinci Construction UK Limited,41670,"89,591.75", Facilities Management , Large , Programme 
UK Statistics Authority,Office for National Statistics,01-Aug-17,Business Rates,Property London,City of Westminster,41671,"247,076.00", Drummond Gate Business Rates, Large , Programme 
UK Statistics Authority,Office for National Statistics,02-Aug-17,ICT Outsourcing & Maintenance/Support,Digital Services Technology and Methodology,Crown Hosting Data Centres Limited,42172,"13,974.11", Information Management Services, SME , Programme 
UK Statistics Authority,Office for National Statistics,02-Aug-17,ICT Outsourcing & Maintenance/Support,Digital Services Technology and Methodology,Crown Hosting Data Centres Limited,42172,"19,116.43", Information Management Services, SME , Programme 
UK Statistics Authority,Office for National Statistics,02-Aug-17,Travel & Subsistence,Corporate Support,Redfern Travel,42180,"26,234.51", Travel and Accommodation Booking Service , SME , Programme 
UK Statistics Authority,Office for National Statistics,02-Aug-17,Postage,Data Collection,UK Mail,42184,"30,582.82", Outgoing Postage , Large , Programme 
UK Statistics Authority,Office for National Statistics,02-Aug-17,Furniture Costing > 2k,Property Titchfield,The Senator Group,42187,"176,630.86", Smart Working Furniture Titchfield, Large , Programme 
UK Statistics Authority,Office for National Statistics,03-Aug-17,Facilities Management,Corporate Support,Vinci Construction UK Limited,42204,"302,314.00", Facilities Management , Large , Programme 
UK Statistics Authority,Office for National Statistics,03-Aug-17,ICT Outsourcing & Maintenance/Support,Digital Services Technology and Methodology,QA Ltd,42215,"253,635.00", Information Management Services, Large , Programme 
UK Statistics Authority,Office for National Statistics,04-Aug-17,ICT Outsourcing & Maintenance/Support,Data Science Campus,Mango Solutions,42629,"40,585.82", Information Management Services, SME , Programme 
UK Statistics Authority,Office for National Statistics,04-Aug-17,Training & Development,Business Services and Development,Mango Solutions,42629,"18,656.93", Information Management Services, SME , Programme 
UK Statistics Authority,Office for National Statistics,04-Aug-17,ICT Outsourcing & Maintenance/Support,Digital Services Technology and Methodology,Automated Intelligence Ltd,42630,"54,945.00", Information Management Services, SME , Programme 
UK Statistics Authority,Office for National Statistics,04-Aug-17,Consultancy,Census,Bramble.CC,42639,"167,952.00", Information Management Services, SME , Programme 
UK Statistics Authority,Office for National Statistics,04-Aug-17,Surveys,National Accounts and Economic Statistics,TNS UK Ltd,42644,"183,064.80", Statistical Services , Large , Programme 
UK Statistics Authority,Office for National Statistics,04-Aug-17,ICT Outsourcing & Maintenance/Support,Digital Services Technology and Methodology,QA Ltd,42649,"284,190.00", Information Management Services, Large , Programme 
UK Statistics Authority,Office for National Statistics,07-Aug-17,ICT Outsourcing & Maintenance/Support,Digital Services Technology and Methodology,RSM Partners Ltd,42825,"42,916.50", Information Management Services , SME , Programme 
UK Statistics Authority,Office for National Statistics,07-Aug-17,Childcare Services,Corporate Support,Computershare Voucher Services,42833,"36,276.54", Childcare Vouchers , Large , Programme 
UK Statistics Authority,Office for National Statistics,07-Aug-17,Childcare Services,Finance,Computershare Voucher Services,42833,"2,829.58", Childcare Vouchers , Large , Programme 
UK Statistics Authority,Office for National Statistics,08-Aug-17,Capital Major Works > 25k,Property Titchfield,Paramount Office Interiors Ltd,42861,"116,178.54", Major Works Titchfield, SME , Programme 
UK Statistics Authority,Office for National Statistics,08-Aug-17,Major Works Over 25k,Property Newport,Paramount Office Interiors Ltd,42861,"9,441.60", Major Works Newport, SME , Programme 
UK Statistics Authority,Office for National Statistics,08-Aug-17,Major Works Over 25k,Property Titchfield,Paramount Office Interiors Ltd,42861,"141,363.44", Major Works Titchfield, SME , Programme 
UK Statistics Authority,Office for National Statistics,09-Aug-17,Contractors,Business Services and Development,Parity Resources Limited,43308,"14,709.42", Information Management Services, Large , Programme 
UK Statistics Authority,Office for National Statistics,09-Aug-17,Contractors,Data Collection,Parity Resources Limited,43308,511.63, Information Management Services, Large , Programme 
UK Statistics Authority,Office for National Statistics,09-Aug-17,Contractors,Data Collection,Parity Resources Limited,43308,"12,279.17", Information Management Services, Large , Programme 
UK Statistics Authority,Office for National Statistics,09-Aug-17,Short-Term Contract & Agency Staff,Press Office,Parity Resources Limited,43308,"2,609.06", Information Management Services, Large , Programme 
UK Statistics Authority,Office for National Statistics,09-Aug-17,ICT Outsourcing & Maintenance/Support,Digital Services Technology and Methodology,Amazon Web Services Inc,30000494,"36,487.56", Web Services , Large , Programme 
UK Statistics Authority,Office for National Statistics,10-Aug-17,Consultancy,Business Services and Development,Parity Resources Limited,43322,"8,697.74", Information Management Services, Large , Programme 
UK Statistics Authority,Office for National Statistics,10-Aug-17,Consultancy,Digital Services Technology and Methodology,Parity Resources Limited,43322,"10,232.64", Information Management Services, Large , Programme 
UK Statistics Authority,Office for National Statistics,10-Aug-17,Contractors,Business Services and Development,Parity Resources Limited,43322,"3,686.88", Information Management Services, Large , Programme 
UK Statistics Authority,Office for National Statistics,10-Aug-17,Contractors,Digital Services Technology and Methodology,Parity Resources Limited,43322,"10,232.64", Information Management Services, Large , Programme 
UK Statistics Authority,Office for National Statistics,10-Aug-17,Contractors,Office of the Chief Economic Adviser,Parity Resources Limited,43322,"9,209.38", Information Management Services, Large , Programme 
UK Statistics Authority,Office for National Statistics,10-Aug-17,Contractors,Portfolio Design,Parity Resources Limited,43322,"12,151.26", Information Management Services, Large , Programme 
UK Statistics Authority,Office for National Statistics,10-Aug-17,ICT Outsourcing & Maintenance/Support,Digital Services Technology and Methodology,Parity Resources Limited,43322,"8,297.96", Information Management Services, Large , Programme 
UK Statistics Authority,Office for National Statistics,10-Aug-17,Short-Term Contract & Agency Staff,Business Services and Development,Parity Resources Limited,43322,"1,399.49", Information Management Services, Large , Programme 
UK Statistics Authority,Office for National Statistics,10-Aug-17,Short-Term Contract & Agency Staff,Census,Parity Resources Limited,43322,"3,825.50", Information Management Services, Large , Programme 
UK Statistics Authority,Office for National Statistics,10-Aug-17,Short-Term Contract & Agency Staff,Data Collection,Parity Resources Limited,43322,"6,978.52", Information Management Services, Large , Programme 
UK Statistics Authority,Office for National Statistics,10-Aug-17,Short-Term Contract & Agency Staff,Data Collection,Parity Resources Limited,43322,"2,099.24", Information Management Services, Large , Programme 
UK Statistics Authority,Office for National Statistics,10-Aug-17,Short-Term Contract & Agency Staff,Data Collection,Parity Resources Limited,43322,"1,399.49", Information Management Services, Large , Programme 
UK Statistics Authority,Office for National Statistics,10-Aug-17,Short-Term Contract & Agency Staff,Press Office,Parity Resources Limited,43322,"1,827.36", Information Management Services, Large , Programme 
UK Statistics Authority,Office for National Statistics,10-Aug-17,Travel & Subsistence,Organisational Development,Parity Resources Limited,43322,20.04, Information Management Services, Large , Programme 
UK Statistics Authority,Office for National Statistics,11-Aug-17,ICT Outsourcing & Maintenance/Support,National Accounts and Economic Statistics,Mango Solutions,43631,"29,480.88", Information Management Services, SME , Programme 
UK Statistics Authority,Office for National Statistics,11-Aug-17,Training & Development,Business Services and Development,Mango Solutions,43631,"16,200.00", Information Management Services, SME , Programme 
UK Statistics Authority,Office for National Statistics,11-Aug-17,ICT Outsourcing & Maintenance/Support,Central Support,Methods Digital Ltd,43643,"22,500.00", Information Management Services, Large , Programme 
UK Statistics Authority,Office for National Statistics,11-Aug-17,ICT Outsourcing & Maintenance/Support,Digital Services Technology and Methodology,Methods Digital Ltd,43643,"98,610.00", Information Management Services, Large , Programme 
UK Statistics Authority,Office for National Statistics,11-Aug-17,Non-IT Contractual Payments,Census,Williams Lea Tag,43645,"37,357.15"," Information Management Services, Census", Large , Programme 
UK Statistics Authority,Office for National Statistics,14-Aug-17,Telecoms,Digital Services Technology and Methodology,BT Global Services,43654,"47,823.19", Information Management Services, Large , Programme 
UK Statistics Authority,Office for National Statistics,14-Aug-17,Telecoms,Digital Services Technology and Methodology,BT Global Services,43654,"66,992.25", Information Management Services, Large , Programme 
UK Statistics Authority,Office for National Statistics,14-Aug-17,Travel & Subsistence,Corporate Support,Redfern Travel,43655,"42,584.11", Travel and Accommodation Booking Service , SME , Programme 
UK Statistics Authority,Office for National Statistics,14-Aug-17,Surveys,Data Collection,Brook Street (UK) Limited,43661,"70,891.56", Census RTP Services , Large , Programme 
UK Statistics Authority,Office for National Statistics,15-Aug-17,Travel & Subsistence,Corporate Support,Redfern Travel,43869,"44,325.41", Travel and Accommodation Booking Service , SME , Programme 
UK Statistics Authority,Office for National Statistics,15-Aug-17,Non-IT Contractual Payments,Census,Pinsent Masons,43876,"26,953.80", Legal Services 2021 Census, Large , Programme 
UK Statistics Authority,Office for National Statistics,15-Aug-17,Procurement Card,Corporate Support,Royal Bank of Scotland,43879,"58,646.45", Multiple Procurement Card Purchases , Large , Programme 
UK Statistics Authority,Office for National Statistics,15-Aug-17,Stationery,Corporate Support,Royal Bank of Scotland,43879,"7,444.09", Multiple Procurement Card Stationery Purchases , Large , Programme 
UK Statistics Authority,Office for National Statistics,16-Aug-17,Consultancy,Digital Services Technology and Methodology,Parity Resources Limited,44151,"10,232.64", Information Management Services, Large , Programme 
UK Statistics Authority,Office for National Statistics,16-Aug-17,Contractors,Census,Parity Resources Limited,44151,"12,151.26", Information Management Services, Large , Programme 
UK Statistics Authority,Office for National Statistics,16-Aug-17,Contractors,Digital Services Technology and Methodology,Parity Resources Limited,44151,"11,256.00", Information Management Services, Large , Programme 
UK Statistics Authority,Office for National Statistics,16-Aug-17,Short-Term Contract & Agency Staff,Business Services and Development,Parity Resources Limited,44151,"3,825.50", Information Management Services, Large , Programme 
UK Statistics Authority,Office for National Statistics,16-Aug-17,Short-Term Contract & Agency Staff,Data Collection,Parity Resources Limited,44151,"2,744.54", Information Management Services, Large , Programme 
UK Statistics Authority,Office for National Statistics,16-Aug-17,Travel & Subsistence,National Accounts and Economic Statistics,Parity Resources Limited,44151,32.64, Information Management Services, Large , Programme 
UK Statistics Authority,Office for National Statistics,16-Aug-17,Consultancy,Digital Services Technology and Methodology,E Synergy Solutions,44157,"37,722.00", Information Management Services, SME , Programme 
UK Statistics Authority,Office for National Statistics,16-Aug-17,Contractors,Digital Services Technology and Methodology,E Synergy Solutions,44157,"17,310.00", Information Management Services, SME , Programme 
UK Statistics Authority,Office for National Statistics,16-Aug-17,ICT Outsourcing & Maintenance/Support,Digital Services Technology and Methodology,E Synergy Solutions,44157,"6,930.00", Information Management Services, SME , Programme 
UK Statistics Authority,Office for National Statistics,16-Aug-17,Travel & Subsistence,Corporate Support,Redfern Travel,44165,"38,017.23", Travel and Accommodation Booking Service , SME , Programme 
UK Statistics Authority,Office for National Statistics,17-Aug-17,Consultancy,Finance,Certus Solutions Consulting Services Ltd,44172,"84,090.00", Information Management Services, SME , Programme 
UK Statistics Authority,Office for National Statistics,17-Aug-17,Consultancy,Census,Engine Partners UK Llp,44173,"78,004.80", Information Management Services, Large , Programme 
UK Statistics Authority,Office for National Statistics,18-Aug-17,Consultancy,Census,Bramble.CC,44635,"152,756.40", Information Management Services, SME , Programme 
UK Statistics Authority,Office for National Statistics,18-Aug-17,Training & Development,Social and Analysis,2020 Delivery Limited,44642,"44,126.60", Information Management Services , SME , Programme 
UK Statistics Authority,Office for National Statistics,18-Aug-17,Contractors,Digital Services Technology and Methodology,E Synergy Solutions,44643,"2,256.00", Information Management Services, SME , Programme 
UK Statistics Authority,Office for National Statistics,18-Aug-17,ICT Outsourcing & Maintenance/Support,Digital Services Technology and Methodology,E Synergy Solutions,44643,"12,960.00", Information Management Services, SME , Programme 
UK Statistics Authority,Office for National Statistics,18-Aug-17,ICT Outsourcing & Maintenance/Support,Digital Services Technology and Methodology,E Synergy Solutions,44643,"26,358.00", Information Management Services, SME , Programme 
UK Statistics Authority,Office for National Statistics,21-Aug-17,High Street Shopping Vouchers,Data Collection,Park Retail Ltd,44906,"111,469.30", Social Surveys Incentive Vouchers, Large , Programme 
UK Statistics Authority,Office for National Statistics,21-Aug-17,Consultancy,Digital Services Technology and Methodology,Sopra Steria,44912,"16,910.78", Information Management Services, Large , Programme 
UK Statistics Authority,Office for National Statistics,21-Aug-17,Contractors,Digital Services Technology and Methodology,Sopra Steria,44912,"8,941.32", Information Management Services, Large , Programme 
UK Statistics Authority,Office for National Statistics,21-Aug-17,Electricity,Property London,EDF Energy,30000505,"32,570.53", London Electricity Charges  , Large , Programme 
UK Statistics Authority,Office for National Statistics,21-Aug-17,Electricity,Property Newport,EDF Energy,30000505,"25,758.08", Newport Electricity Charges  , Large , Programme 
UK Statistics Authority,Office for National Statistics,21-Aug-17,Electricity,Property Titchfield,EDF Energy,30000505,"27,601.91", Titchfield Electricity Charges  , Large , Programme 
UK Statistics Authority,Office for National Statistics,22-Aug-17,ICT Outsourcing & Maintenance/Support,Social and Analysis,Equiniti Limited,44931,"47,212.80", Information Management Services, Large , Programme 
UK Statistics Authority,Office for National Statistics,22-Aug-17,Capital Major Works > 25k,Property Newport,Central Roofing Ltd,44934,"4,972.80", Major Works Newport, SME , Programme 
UK Statistics Authority,Office for National Statistics,22-Aug-17,Capital Major Works > 25k,Property Titchfield,Central Roofing Ltd,44934,"26,444.44", Major Works Newport, SME , Programme 
UK Statistics Authority,Office for National Statistics,22-Aug-17,Major Works Over 25k,Property Newport,Central Roofing Ltd,44934,"66,374.48", Major Works Newport, SME , Programme 
UK Statistics Authority,Office for National Statistics,22-Aug-17,Major Works Over 25k,Property Titchfield,Central Roofing Ltd,44934,"6,611.11", Major Works Newport, SME , Programme 
UK Statistics Authority,Office for National Statistics,22-Aug-17,Capital Major Works > 25k,Property Titchfield,Paramount Office Interiors Ltd,44938,"65,152.72", Major Works Titchfield, SME , Programme 
UK Statistics Authority,Office for National Statistics,22-Aug-17,Major Works Over 25k,Property Titchfield,Paramount Office Interiors Ltd,44938,"89,972.78", Major Works Titchfield, SME , Programme 
UK Statistics Authority,Office for National Statistics,23-Aug-17,Travel & Subsistence,Corporate Support,Redfern Travel,45231,"32,533.67", Travel and Accommodation Booking Service , SME , Programme 
UK Statistics Authority,Office for National Statistics,23-Aug-17,Consultancy,Data Collection,Certes Computing Ltd,45234,"25,304.40", Information Management Services, SME , Programme 
UK Statistics Authority,Office for National Statistics,25-Aug-17,ICT Outsourcing & Maintenance/Support,Business Services and Development,Valtech Ltd,45742,"27,432.00", Information Management Services, Large , Programme 
UK Statistics Authority,Office for National Statistics,29-Aug-17,Consultancy,Digital Services Technology and Methodology,Mango Solutions,45912,"39,780.00", Information Management Services, SME , Programme 
UK Statistics Authority,Office for National Statistics,29-Aug-17,ICT Outsourcing & Maintenance/Support,Data Science Campus,Mango Solutions,45912,"32,916.00", Information Management Services, SME , Programme 
UK Statistics Authority,Office for National Statistics,29-Aug-17,Surveys,National Accounts and Economic Statistics,IFF Research,45913,"56,321.00", Information Management Services, Large , Programme 
UK Statistics Authority,Office for National Statistics,29-Aug-17,ICT Outsourcing & Maintenance/Support,Digital Services Technology and Methodology,E Synergy Solutions,45915,"29,532.00", Information Management Services, SME , Programme 
UK Statistics Authority,Office for National Statistics,29-Aug-17,Accommodation & Building Management - Minor Works,Property Titchfield,Vinci Construction UK Limited,45918,"16,504.56", Facilities Management , Large , Programme 
UK Statistics Authority,Office for National Statistics,29-Aug-17,Non-IT Purchases > 2k Per Item,Property Newport,Vinci Construction UK Limited,45918,"8,097.55", Facilities Management , Large , Programme 
UK Statistics Authority,Office for National Statistics,29-Aug-17,Office Furniture,Property Newport,Vinci Construction UK Limited,45918,"5,803.62", Facilities Management , Large , Programme 
UK Statistics Authority,Office for National Statistics,29-Aug-17,Telecoms,Digital Services Technology and Methodology,BT Global Services,45921,"40,364.99", Information Management Services, Large , Programme 
UK Statistics Authority,Office for National Statistics,29-Aug-17,Telecoms,Data Collection,BT Global Services,45922,"6,801.82", Information Management Services, Large , Programme 
UK Statistics Authority,Office for National Statistics,29-Aug-17,Telecoms,Digital Services Technology and Methodology,BT Global Services,45922,"22,632.00", Information Management Services, Large , Programme 
UK Statistics Authority,Office for National Statistics,29-Aug-17,ICT Outsourcing & Maintenance/Support,Central Support,Methods Digital Ltd,45925,"11,700.00", Information Management Services, Large , Programme 
UK Statistics Authority,Office for National Statistics,29-Aug-17,ICT Outsourcing & Maintenance/Support,Digital Services Technology and Methodology,Methods Digital Ltd,45925,"65,640.00", Information Management Services, Large , Programme 
UK Statistics Authority,Office for National Statistics,29-Aug-17,Contractors,Business Services and Development,Parity Resources Limited,45928,"8,953.56", Information Management Services, Large , Programme 
UK Statistics Authority,Office for National Statistics,29-Aug-17,Contractors,Business Services and Development,Parity Resources Limited,45928,"3,197.70", Information Management Services, Large , Programme 
UK Statistics Authority,Office for National Statistics,29-Aug-17,Contractors,Data Collection,Parity Resources Limited,45928,"6,651.22", Information Management Services, Large , Programme 
UK Statistics Authority,Office for National Statistics,29-Aug-17,Contractors,Digital Services Technology and Methodology,Parity Resources Limited,45928,"1,807.08", Information Management Services, Large , Programme 
UK Statistics Authority,Office for National Statistics,29-Aug-17,ICT Outsourcing & Maintenance/Support,Digital Services Technology and Methodology,Parity Resources Limited,45928,"10,230.24", Information Management Services, Large , Programme 
UK Statistics Authority,Office for National Statistics,29-Aug-17,Short-Term Contract & Agency Staff,Census,Parity Resources Limited,45928,"10,232.64", Information Management Services, Large , Programme 
UK Statistics Authority,Office for National Statistics,29-Aug-17,Short-Term Contract & Agency Staff,Census,Parity Resources Limited,45928,"3,360.24", Information Management Services, Large , Programme 
UK Statistics Authority,Office for National Statistics,29-Aug-17,Surveys,National Accounts and Economic Statistics,Equifax LTD,45929,"57,600.00", Statistical services, Large , Programme 
UK Statistics Authority,Office for National Statistics,31-Aug-17,Travel & Subsistence,Corporate Support,Redfern Travel,30000519,"27,246.19", Travel and Accommodation Booking Service , SME , Programme 
UK Statistics Authority,Office for National Statistics,31-Aug-17,ICT Outsourcing & Maintenance/Support,Digital Services Technology and Methodology,Methods Digital Ltd,30000521,"193,140.00", Information Management Services, Large , Programme 
UK Statistics Authority,Office for National Statistics,31-Aug-17,ICT Outsourcing & Maintenance/Support,Central Support,Methods Digital Ltd,30000522,"21,600.00", Information Management Services, Large , Programme 
UK Statistics Authority,Office for National Statistics,31-Aug-17,ICT Outsourcing & Maintenance/Support,Digital Services Technology and Methodology,Methods Digital Ltd,30000522,"80,550.00", Information Management Services, Large , Programme 
UK Statistics Authority,Office for National Statistics,31-Aug-17,ICT Outsourcing & Maintenance/Support,Digital Services Technology and Methodology,Methods Digital Ltd,30000522,"14,400.00", Information Management Services, Large , Programme 
UK Statistics Authority,Office for National Statistics,31-Aug-17,ICT Outsourcing & Maintenance/Support,Digital Services Technology and Methodology,Methods Digital Ltd,30000522,"18,000.00", Information Management Services, Large , Programme 
UK Statistics Authority,Office for National Statistics,31-Aug-17,ICT Outsourcing & Maintenance/Support,Digital Services Technology and Methodology,Methods Digital Ltd,30000522,"16,200.00", Information Management Services, Large , Programme 
UK Statistics Authority,Office for National Statistics,31-Aug-17,ICT Outsourcing & Maintenance/Support,Digital Services Technology and Methodology,Methods Digital Ltd,30000522,"50,580.00", Information Management Services, Large , Programme 
UK Statistics Authority,Office for National Statistics,31-Aug-17,Major Works Over 25k,Property Titchfield,Paramount Office Interiors Ltd,30000523,"202,146.58", Major Works Titchfield, SME , Programme 
UK Statistics Authority,Office for National Statistics,31-Aug-17,Surveys,Data Collection,NatCen Social Research,30000524,"232,027.63", Post Office Vouchers , Large , Programme 
UK Statistics Authority,Office for National Statistics,31-Aug-17,Business Rates,Property London,City of Westminster,30000525,"247,076.00", Drummond Gate Business Rates, Large , Programme 
UK Statistics Authority,Office for National Statistics,31-Aug-17,ICT Outsourcing & Maintenance/Support,Digital Services Technology and Methodology,Computacenter (UK) Limited,30000526,"190,012.20", Information Management Services, Large , Programme 
UK Statistics Authority,Office for National Statistics,31-Aug-17,ICT Costs and Software,Digital Services Technology and Methodology,Computacenter (UK) Limited,30000527,"70,589.30", Information Management Services, Large , Programme 
UK Statistics Authority,Office for National Statistics,31-Aug-17,ICT Outsourcing & Maintenance/Support,Digital Services Technology and Methodology,QA Ltd,30000528,"58,110.00", Information Management Services, Large , Programme 
